Workbook

Sheet Ausgangsbeispiel
B2: Grundstücksfläche: | F2: 900 | H2: qm
B3: Nutzfläche: | F3: 1750 | H3: qm
B4: Rundung: | F4: -3
B5: Wertermittlungsstichtag: | F5: 2023-11-01
B6: Datenstichtag: | F6: 2022-07-01
B8: 01.07.2022 (Datenstichtag) + MAP (§ 7) auf den Stichtag 01.11.2023 | P8: Wertermittlungsstichtag 01.11.2023 | Marktanpassung umgerechnet in LSZ
B9: Bodenwert | P9: Bodenwert
C10: =$F$2 -> 900 | E10: € x | F10: 650 | H10: €/qm | L10: =ROUND(C10*F10,0) -> 585000 | N10: € | Q10: =$F$2 -> 900 | S10: € x | T10: 650 | V10: €/qm | Z10: =ROUND(Q10*T10,0) -> 585000 | AB10: €
B11: Jährlicher Rohertrag | J11: =160000 -> 160000 | L11: € | P11: Jährlicher Rohertrag | X11: =160000 -> 160000 | Z11: €
B12: Bewirtschaftungskosten pauschal | P12: Bewirtschaftungskosten pauschal
C13: 0.18 | J13: =-ROUND(C13*J11,0) -> -28800 | L13: € | Q13: 0.18 | X13: =-ROUND(Q13*X11,0) -> -28800 | Z13: €
B14: Jährlicher Reinertrag | J14: =J11+J13 -> 131200 | L14: € | P14: Jährlicher Reinertrag | X14: =X11+X13 -> 131200 | Z14: €
B15: Bodenwertverzinsungsbetrag | P15: Bodenwertverzinsungsbetrag
B16: LSZ | C16: 0.015 | E16: von | F16: =L10 -> 585000 | J16: =-ROUND(C16*F16,0) -> -8775 | L16: € | P16: LSZ | Q16: 0.02579126661 | S16: von | T16: =Z10 -> 585000 | X16: =-ROUND(Q16*T16,0) -> -15088 | Z16: €
B17: Reinertragsanteil der baulichen Anlagen | J17: =J14+J16 -> 122425 | L17: € | P17: Reinertragsanteil der baulichen Anlagen | X17: =X14+X16 -> 116112 | Z17: €
B18: Kapitalisierungsfaktor bei | G18: 40 | H18: Jahren | P18: Kapitalisierungsfaktor bei | U18: 40 | V18: Jahren
B19: LSZ | C19: =C16 -> 0.015 | E19: = | F19: =PV(C16,G18,-1) -> 29.9158452 | H19: fach | P19: LSZ | Q19: =Q16 -> 0.02579126661 | S19: = | T19: =PV(Q16,U18,-1) -> 24.77154438 | V19: fach
B20: Vorläufiger Ertragswert der baulichen Anlagen | L20: =ROUND(J17*F19,0) -> 3662447 | N20: € | P20: Vorläufiger Ertragswert der baulichen Anlagen | Z20: =ROUND(X17*T19,0) -> 2876274 | AB20: €
B21: Vorläufiger Ertragswert (gerundet) | L21: =ROUND(L10+L20,$F$4) -> 4247000 | N21: € | P21: Vorläufiger Ertragswert (gerundet) | Z21: =ROUND(Z10+Z20,$F$4) -> 3461000 | AB21: €
B22: Marktanpassung nach § 7 Abs. 2 ImmoWertV 2021 | P22: Marktanpassung nach § 7 Abs. 2 ImmoWertV 2021
C23: Datenstichtag 01.07.2022 zu Stichtag | H23: Wert: | I23: -0.185 | L23: =ROUND(L21*I23,0) -> -785695 | N23: € | Q23: Keine | V23: Wert: | W23: 0 | Z23: =ROUND(Z21*W23,0) -> 0 | AB23: €
B24: Marktangepasster vorläufiger Ertragswert (gerundet) | L24: =ROUND(L21+L23,$F$4) -> 3461000 | N24: € | P24: Marktangepasster vorläufiger Ertragswert (gerundet) | Z24: =ROUND(Z21+Z23,$F$4) -> 3461000 | AB24: €
B25: Besondere objektspezifische Grundstücksmerkmale | P25: Besondere objektspezifische Grundstücksmerkmale
L26: 0 | N26: € | Z26: 0 | AB26: €
B27: Ertragswert (gerundet) | L27: =ROUND(L24+L26,$F$4) -> 3461000 | N27: € | P27: Ertragswert (gerundet) | Z27: =ROUND(Z24+Z26,$F$4) -> 3461000 | AB27: €
B28: Rohertragsfaktor: | E28: =ROUND(L27/J11,2) -> 21.63 | F28: fach | G28: pro qm NF: | I28: =ROUND(L27/$F$3,9) -> 1977.714286 | K28: €/qm | P28: Rohertragsfaktor: | S28: =ROUND(Z27/X11,2) -> 21.63 | T28: fach | U28: pro qm NF: | W28: =ROUND(Z27/$F$3,9) -> 1977.714286 | Y28: €/qm
B29: Differenz Ertragswert zum vorläufigen Ertragswert | I29: =100*L29/L27 -> -22.71019936 | K29: % | L29: =L27-L21 -> -786000 | N29: € | P29: Differenz Ertragswert zum vorläufigen Ertragswert | W29: =100*Z29/Z27 -> 0 | Y29: % | Z29: =Z27-Z21 -> 0 | AB29: €

Sheet RND korrigiert
B2: Grundstücksfläche: | F2: 900 | H2: qm
B3: Nutzfläche: | F3: 1750 | H3: qm
B4: Rundung: | F4: -3
B5: Wertermittlungsstichtag: | F5: 2023-11-01
B6: Datenstichtag: | F6: 2022-07-01
B8: 01.07.2022 (Datenstichtag) + MAP (§ 7) auf den Stichtag 01.11.2023 | P8: Wertermittlungsstichtag 01.11.2023 | Marktanpassung umgerechnet in LSZ
B9: Bodenwert | P9: Bodenwert
C10: =$F$2 -> 900 | E10: € x | F10: 650 | H10: €/qm | L10: =ROUND(C10*F10,0) -> 585000 | N10: € | Q10: =$F$2 -> 900 | S10: € x | T10: 650 | V10: €/qm | Z10: =ROUND(Q10*T10,0) -> 585000 | AB10: €
B11: Jährlicher Rohertrag | J11: =160000 -> 160000 | L11: € | P11: Jährlicher Rohertrag | X11: =160000 -> 160000 | Z11: €
B12: Bewirtschaftungskosten pauschal | P12: Bewirtschaftungskosten pauschal
C13: 0.18 | J13: =-ROUND(C13*J11,0) -> -28800 | L13: € | Q13: 0.18 | X13: =-ROUND(Q13*X11,0) -> -28800 | Z13: €
B14: Jährlicher Reinertrag | J14: =J11+J13 -> 131200 | L14: € | P14: Jährlicher Reinertrag | X14: =X11+X13 -> 131200 | Z14: €
B15: Bodenwertverzinsungsbetrag | P15: Bodenwertverzinsungsbetrag
B16: LSZ | C16: 0.015 | E16: von | F16: =L10 -> 585000 | J16: =-ROUND(C16*F16,0) -> -8775 | L16: € | P16: LSZ | Q16: 0.02511424586 | S16: von | T16: =Z10 -> 585000 | X16: =-ROUND(Q16*T16,0) -> -14692 | Z16: €
B17: Reinertragsanteil der baulichen Anlagen | J17: =J14+J16 -> 122425 | L17: € | P17: Reinertragsanteil der baulichen Anlagen | X17: =X14+X16 -> 116508 | Z17: €
B18: Kapitalisierungsfaktor bei | G18: 40 | H18: Jahren | P18: Kapitalisierungsfaktor bei | U18: 39 | V18: Jahren
B19: LSZ | C19: =C16 -> 0.015 | E19: = | F19: =PV(C16,G18,-1) -> 29.9158452 | H19: fach | P19: LSZ | Q19: =Q16 -> 0.02511424586 | S19: = | T19: =PV(Q16,U18,-1) -> 24.68377185 | V19: fach
B20: Vorläufiger Ertragswert der baulichen Anlagen | L20: =ROUND(J17*F19,0) -> 3662447 | N20: € | P20: Vorläufiger Ertragswert der baulichen Anlagen | Z20: =ROUND(X17*T19,0) -> 2875857 | AB20: €
B21: Vorläufiger Ertragswert (gerundet) | L21: =ROUND(L10+L20,$F$4) -> 4247000 | N21: € | P21: Vorläufiger Ertragswert (gerundet) | Z21: =ROUND(Z10+Z20,$F$4) -> 3461000 | AB21: €
B22: Marktanpassung nach § 7 Abs. 2 ImmoWertV 2021 | P22: Marktanpassung nach § 7 Abs. 2 ImmoWertV 2021
C23: Datenstichtag 01.07.2022 zu Stichtag | H23: Wert: | I23: -0.185 | L23: =ROUND(L21*I23,0) -> -785695 | N23: € | Q23: Keine | V23: Wert: | W23: 0 | Z23: =ROUND(Z21*W23,0) -> 0 | AB23: €
B24: Marktangepasster vorläufiger Ertragswert (gerundet) | L24: =ROUND(L21+L23,$F$4) -> 3461000 | N24: € | P24: Marktangepasster vorläufiger Ertragswert (gerundet) | Z24: =ROUND(Z21+Z23,$F$4) -> 3461000 | AB24: €
B25: Besondere objektspezifische Grundstücksmerkmale | P25: Besondere objektspezifische Grundstücksmerkmale
L26: 0 | N26: € | Z26: 0 | AB26: €
B27: Ertragswert (gerundet) | L27: =ROUND(L24+L26,$F$4) -> 3461000 | N27: € | P27: Ertragswert (gerundet) | Z27: =ROUND(Z24+Z26,$F$4) -> 3461000 | AB27: €
B28: Rohertragsfaktor: | E28: =ROUND(L27/J11,2) -> 21.63 | F28: fach | G28: pro qm NF: | I28: =ROUND(L27/$F$3,9) -> 1977.714286 | K28: €/qm | P28: Rohertragsfaktor: | S28: =ROUND(Z27/X11,2) -> 21.63 | T28: fach | U28: pro qm NF: | W28: =ROUND(Z27/$F$3,9) -> 1977.714286 | Y28: €/qm
B29: Differenz Ertragswert zum vorläufigen Ertragswert | I29: =100*L29/L27 -> -22.71019936 | K29: % | L29: =L27-L21 -> -786000 | N29: € | P29: Differenz Ertragswert zum vorläufigen Ertragswert | W29: =100*Z29/Z27 -> 0 | Y29: % | Z29: =Z27-Z21 -> 0 | AB29: €

Sheet BWK erhöht und RND korrigiert
B2: Grundstücksfläche: | F2: 900 | H2: qm
B3: Nutzfläche: | F3: 1750 | H3: qm
B4: Rundung: | F4: -3
B5: Wertermittlungsstichtag: | F5: 2023-11-01
B6: Datenstichtag: | F6: 2022-07-01
B8: 01.07.2022 (Datenstichtag) + MAP (§ 7) auf den Stichtag 01.11.2023 | P8: Wertermittlungsstichtag 01.11.2023 | Marktanpassung umgerechnet in LSZ
B9: Bodenwert | P9: Bodenwert
C10: =$F$2 -> 900 | E10: € x | F10: 650 | H10: €/qm | L10: =ROUND(C10*F10,0) -> 585000 | N10: € | Q10: =$F$2 -> 900 | S10: € x | T10: 650 | V10: €/qm | Z10: =ROUND(Q10*T10,0) -> 585000 | AB10: €
B11: Jährlicher Rohertrag | J11: =160000 -> 160000 | L11: € | P11: Jährlicher Rohertrag | X11: =160000 -> 160000 | Z11: €
B12: Bewirtschaftungskosten pauschal | P12: Bewirtschaftungskosten pauschal
C13: 0.18 | J13: =-ROUND(C13*J11,0) -> -28800 | L13: € | Q13: 0.22 | X13: =-ROUND(Q13*X11,0) -> -35200 | Z13: €
B14: Jährlicher Reinertrag | J14: =J11+J13 -> 131200 | L14: € | P14: Jährlicher Reinertrag | X14: =X11+X13 -> 124800 | Z14: €
B15: Bodenwertverzinsungsbetrag | P15: Bodenwertverzinsungsbetrag
B16: LSZ | C16: 0.015 | E16: von | F16: =L10 -> 585000 | J16: =-ROUND(C16*F16,0) -> -8775 | L16: € | P16: LSZ | Q16: 0.02254292989 | S16: von | T16: =Z10 -> 585000 | X16: =-ROUND(Q16*T16,0) -> -13188 | Z16: €
B17: Reinertragsanteil der baulichen Anlagen | J17: =J14+J16 -> 122425 | L17: € | P17: Reinertragsanteil der baulichen Anlagen | X17: =X14+X16 -> 111612 | Z17: €
B18: Kapitalisierungsfaktor bei | G18: 40 | H18: Jahren | P18: Kapitalisierungsfaktor bei | U18: 39 | V18: Jahren
B19: LSZ | C19: =C16 -> 0.015 | E19: = | F19: =PV(C16,G18,-1) -> 29.9158452 | H19: fach | P19: LSZ | Q19: =Q16 -> 0.02254292989 | S19: = | T19: =PV(Q16,U18,-1) -> 25.76424964 | V19: fach
B20: Vorläufiger Ertragswert der baulichen Anlagen | L20: =ROUND(J17*F19,0) -> 3662447 | N20: € | P20: Vorläufiger Ertragswert der baulichen Anlagen | Z20: =ROUND(X17*T19,0) -> 2875599 | AB20: €
B21: Vorläufiger Ertragswert (gerundet) | L21: =ROUND(L10+L20,$F$4) -> 4247000 | N21: € | P21: Vorläufiger Ertragswert (gerundet) | Z21: =ROUND(Z10+Z20,$F$4) -> 3461000 | AB21: €
B22: Marktanpassung nach § 7 Abs. 2 ImmoWertV 2021 | P22: Marktanpassung nach § 7 Abs. 2 ImmoWertV 2021
C23: Datenstichtag 01.07.2022 zu Stichtag | H23: Wert: | I23: -0.185 | L23: =ROUND(L21*I23,0) -> -785695 | N23: € | Q23: Keine | V23: Wert: | W23: 0 | Z23: =ROUND(Z21*W23,0) -> 0 | AB23: €
B24: Marktangepasster vorläufiger Ertragswert (gerundet) | L24: =ROUND(L21+L23,$F$4) -> 3461000 | N24: € | P24: Marktangepasster vorläufiger Ertragswert (gerundet) | Z24: =ROUND(Z21+Z23,$F$4) -> 3461000 | AB24: €
B25: Besondere objektspezifische Grundstücksmerkmale | P25: Besondere objektspezifische Grundstücksmerkmale
L26: 0 | N26: € | Z26: 0 | AB26: €
B27: Ertragswert (gerundet) | L27: =ROUND(L24+L26,$F$4) -> 3461000 | N27: € | P27: Ertragswert (gerundet) | Z27: =ROUND(Z24+Z26,$F$4) -> 3461000 | AB27: €
B28: Rohertragsfaktor: | E28: =ROUND(L27/J11,2) -> 21.63 | F28: fach | G28: pro qm NF: | I28: =ROUND(L27/$F$3,9) -> 1977.714286 | K28: €/qm | P28: Rohertragsfaktor: | S28: =ROUND(Z27/X11,2) -> 21.63 | T28: fach | U28: pro qm NF: | W28: =ROUND(Z27/$F$3,9) -> 1977.714286 | Y28: €/qm
B29: Differenz Ertragswert zum vorläufigen Ertragswert | I29: =100*L29/L27 -> -22.71019936 | K29: % | L29: =L27-L21 -> -786000 | N29: € | P29: Differenz Ertragswert zum vorläufigen Ertragswert | W29: =100*Z29/Z27 -> 0 | Y29: % | Z29: =Z27-Z21 -> 0 | AB29: €

Sheet BWK und RND erhöht, BW gesenkt
B2: Grundstücksfläche: | F2: 900 | H2: qm
B3: Nutzfläche: | F3: 1750 | H3: qm
B4: Rundung: | F4: -3
B5: Wertermittlungsstichtag: | F5: 2023-11-01
B6: Datenstichtag: | F6: 2022-07-01
B8: 01.07.2022 (Datenstichtag) + MAP (§ 7) auf den Stichtag 01.11.2023 | P8: Wertermittlungsstichtag 01.11.2023 | Marktanpassung umgerechnet in LSZ
B9: Bodenwert | P9: Bodenwert
C10: =$F$2 -> 900 | E10: € x | F10: 650 | H10: €/qm | L10: =ROUND(C10*F10,0) -> 585000 | N10: € | Q10: =$F$2 -> 900 | S10: € x | T10: 585 | V10: €/qm | Z10: =ROUND(Q10*T10,0) -> 526500 | AB10: €
B11: Jährlicher Rohertrag | J11: =160000 -> 160000 | L11: € | P11: Jährlicher Rohertrag | X11: =160000 -> 160000 | Z11: €
B12: Bewirtschaftungskosten pauschal | P12: Bewirtschaftungskosten pauschal
C13: 0.18 | J13: =-ROUND(C13*J11,0) -> -28800 | L13: € | Q13: 0.18 | X13: =-ROUND(Q13*X11,0) -> -28800 | Z13: €
B14: Jährlicher Reinertrag | J14: =J11+J13 -> 131200 | L14: € | P14: Jährlicher Reinertrag | X14: =X11+X13 -> 131200 | Z14: €
B15: Bodenwertverzinsungsbetrag | P15: Bodenwertverzinsungsbetrag
B16: LSZ | C16: 0.015 | E16: von | F16: =L10 -> 585000 | J16: =-ROUND(C16*F16,0) -> -8775 | L16: € | P16: LSZ | Q16: 0.03012286232 | S16: von | T16: =Z10 -> 526500 | X16: =-ROUND(Q16*T16,0) -> -15860 | Z16: €
B17: Reinertragsanteil der baulichen Anlagen | J17: =J14+J16 -> 122425 | L17: € | P17: Reinertragsanteil der baulichen Anlagen | X17: =X14+X16 -> 115340 | Z17: €
B18: Kapitalisierungsfaktor bei | G18: 40 | H18: Jahren | P18: Kapitalisierungsfaktor bei | U18: 49 | V18: Jahren
B19: LSZ | C19: =C16 -> 0.015 | E19: = | F19: =PV(C16,G18,-1) -> 29.9158452 | H19: fach | P19: LSZ | Q19: =Q16 -> 0.03012286232 | S19: = | T19: =PV(Q16,U18,-1) -> 25.44309619 | V19: fach
B20: Vorläufiger Ertragswert der baulichen Anlagen | L20: =ROUND(J17*F19,0) -> 3662447 | N20: € | P20: Vorläufiger Ertragswert der baulichen Anlagen | Z20: =ROUND(X17*T19,0) -> 2934607 | AB20: €
B21: Vorläufiger Ertragswert (gerundet) | L21: =ROUND(L10+L20,$F$4) -> 4247000 | N21: € | P21: Vorläufiger Ertragswert (gerundet) | Z21: =ROUND(Z10+Z20,$F$4) -> 3461000 | AB21: €
B22: Marktanpassung nach § 7 Abs. 2 ImmoWertV 2021 | P22: Marktanpassung nach § 7 Abs. 2 ImmoWertV 2021
C23: Datenstichtag 01.07.2022 zu Stichtag | H23: Wert: | I23: -0.185 | L23: =ROUND(L21*I23,0) -> -785695 | N23: € | Q23: Keine | V23: Wert: | W23: 0 | Z23: =ROUND(Z21*W23,0) -> 0 | AB23: €
B24: Marktangepasster vorläufiger Ertragswert (gerundet) | L24: =ROUND(L21+L23,$F$4) -> 3461000 | N24: € | P24: Marktangepasster vorläufiger Ertragswert (gerundet) | Z24: =ROUND(Z21+Z23,$F$4) -> 3461000 | AB24: €
B25: Besondere objektspezifische Grundstücksmerkmale | P25: Besondere objektspezifische Grundstücksmerkmale
L26: 0 | N26: € | Z26: 0 | AB26: €
B27: Ertragswert (gerundet) | L27: =ROUND(L24+L26,$F$4) -> 3461000 | N27: € | P27: Ertragswert (gerundet) | Z27: =ROUND(Z24+Z26,$F$4) -> 3461000 | AB27: €
B28: Rohertragsfaktor: | E28: =ROUND(L27/J11,2) -> 21.63 | F28: fach | G28: pro qm NF: | I28: =ROUND(L27/$F$3,9) -> 1977.714286 | K28: €/qm | P28: Rohertragsfaktor: | S28: =ROUND(Z27/X11,2) -> 21.63 | T28: fach | U28: pro qm NF: | W28: =ROUND(Z27/$F$3,9) -> 1977.714286 | Y28: €/qm
B29: Differenz Ertragswert zum vorläufigen Ertragswert | I29: =100*L29/L27 -> -22.71019936 | K29: % | L29: =L27-L21 -> -786000 | N29: € | P29: Differenz Ertragswert zum vorläufigen Ertragswert | W29: =100*Z29/Z27 -> 0 | Y29: % | Z29: =Z27-Z21 -> 0 | AB29: €
